fUSD/lending_fUSD_20260108
["ID","MTS","AMOUNT","RATE_DAILY","PERIOD"]
[400872848,1767850238904,-169.89,0.00013176,2]
[400872850,1767850238914,-5708.28,0.00013176,2]
[400872852,1767850238923,-999.99,0.00013176,2]
[400872854,1767850238932,-9999.99,0.00013176,2]
[400872856,1767850238941,-2973.55,0.00013226,2]
[400872858,1767850238950,-1000.0,0.00013232,2]
[400872860,1767850238961,-2589.64,0.0001327,2]
[400872862,1767850238970,-440.02,0.00013285,2]
[400872864,1767850238980,-1149.38,0.00013316,2]
[400872866,1767850238989,-10674.87334124,0.00013488,2]
[400872868,1767850238999,-9599.12191046,0.00013496,2]
[400872870,1767850239009,-787.25604664,0.000135,2]
[400872872,1767850239019,-626.22881488,0.00013585,2]
[400872874,1767850239029,-1149.38,0.0001359,2]
[400872876,1767850239038,-198.43935064,0.00013698,2]
[400872878,1767850239047,-500.0,0.00013698,2]
[400872880,1767850239057,-184.55624416,0.00013698,2]
[400872882,1767850239066,-500.0,0.00013698,2]
[400872884,1767850239076,-500.0,0.00013698,2]
[400872886,1767850239086,-500.0,0.00013698,2]
[400872888,1767850239096,-500.0,0.00013698,2]
[400872890,1767850239105,-500.0,0.00013698,2]
[400872892,1767850239114,-500.0,0.00013698,2]
[400872894,1767850239123,-500.0,0.00013698,2]
[400872896,1767850239133,-500.0,0.00013698,2]
[400872898,1767850239142,-500.0,0.00013698,2]
[400872900,1767850239151,-500.0,0.00013698,2]
[400872902,1767850239160,-410.25491874,0.00013698,2]
[400872904,1767850239171,-500.0,0.00013698,2]
[400872906,1767850239180,-500.0,0.00013698,2]
[400872908,1767850239189,-363.73176274,0.00013698,2]
[400872910,1767850239198,-3895.88,0.00013699,2]
[400872912,1767850239208,-524.76,0.00013699,2]
[400872914,1767850239217,-261.39999377,0.00013771,2]
[400872916,1767850239227,-500.0,0.00013853,2]
[400872918,1767850239237,-1149.38,0.00013864,2]
[400872920,1767850239245,-12660.66,0.00013868,2]
[400872922,1767850239255,-501.86313919,0.00014,2]
[400872924,1767850239264,-440.02,0.00014023,2]
[400872926,1767850239273,-255.0,0.00014037,2]
[400872928,1767850239283,-10674.87334124,0.00014039,2]
[400872930,1767850239292,-9599.12191046,0.00014046,2]
[400872932,1767850239302,-195.0,0.00014058,2]
[400872934,1767850239311,-300.0,0.00014058,2]
[400872935,1767850239320,-1149.38,0.00014138,2]
[400872936,1767850239330,-420.0,0.00014189,2]
[400872937,1767850239339,-1680.0,0.00014231,2]
[400872938,1767850239348,-300.0,0.00014232,2]
[400872939,1767850239358,-250.0,0.00014232,2]
[400872941,1767850239368,-193.0,0.00014232,2]
[400872943,1767850239378,-1536.0,0.00014295,2]
[400872945,1767850239388,-2500.0,0.0001434,2]
[400872947,1767850239397,-2500.0,0.0001434,2]
[400872949,1767850239407,-2500.0,0.0001434,2]
[400872951,1767850239416,-300.0,0.0001434,2]
[400872953,1767850239425,-152.17141778,0.0001434,2]
[400872955,1767850239440,-300.0,0.0001434,2]
[400872958,1767850239450,-300.0,0.0001434,2]
[400872960,1767850239459,-195.0,0.0001434,2]
[400872962,1767850239469,-300.0,0.0001434,2]
[400872964,1767850239478,-5000.0,0.0001434,2]
[400872966,1767850239487,-195.0,0.0001434,2]
[400872968,1767850239496,-195.0,0.0001434,2]
[400872970,1767850239505,-300.0,0.0001434,2]
[400872972,1767850239514,-370.46226598,0.0001434,2]
[400872974,1767850239523,-195.0,0.0001434,2]
[400872976,1767850239533,-5244.95958704,0.00014352,2]
[400872978,1767850239542,-409.1,0.00014378,2]
[400872980,1767850239552,-524.76,0.00014384,2]
[400872982,1767850239561,-1149.38,0.00014412,2]
[400872984,1767850239570,-10674.87334124,0.00014591,2]
[400872986,1767850239579,-451.90263959,0.00014596,2]
[400872988,1767850239590,-261.39999377,0.00014597,2]
[400872990,1767850239600,-9599.12191046,0.00014597,2]
[400872992,1767850239610,-1149.38,0.00014686,2]
[400872993,1767850239619,-440.02,0.00014761,2]
[400872996,1767850239629,-500.0,0.00014763,2]
[400872997,1767850239638,-500.0,0.00014763,2]
[400873000,1767850239649,-500.0,0.00014763,2]
[400873002,1767850239658,-500.0,0.00014763,2]
[400873003,1767850239667,-165.70843486,0.00014763,2]
[400873006,1767850239678,-500.0,0.00014763,2]
[400873008,1767850239687,-500.0,0.00014763,2]
[400873010,1767850239696,-486.22003068,0.00014763,2]
[400873012,1767850239706,-500.0,0.00014763,2]
[400873014,1767850239715,-500.0,0.00014763,2]
[400873016,1767850239725,-500.0,0.00014767,2]
[400873018,1767850239734,-1000.0,0.00014886,2]
[400873020,1767850239743,-1149.40859706,0.0001496,2]
[400873022,1767850239752,-282.97,0.00015,2]
[400873024,1767850239762,-812.17,0.00015,2]
[400873026,1767850239771,-175.75,0.00015,2]
[400873028,1767850239782,-544.29,0.00015,2]
[400873030,1767850239791,-781.21,0.00015,2]
[400873032,1767850239801,-266.05,0.00015011,2]
[400873034,1767850239810,-167.43,0.00015021,2]
[400873036,1767850239819,-524.76,0.00015068,2]
[400873038,1767850239828,-194.549792,0.00015097,2]
[400873040,1767850239838,-283093.76837741,0.000151,2]
[400873042,1767850239847,-10674.87334124,0.00015142,2]
[400873044,1767850239856,-9599.12191046,0.00015147,2]
[400873046,1767850239865,-433.0,0.00015227,2]
[400873048,1767850239874,-20309.51,0.00015237,2]
[400873050,1767850239884,-500.0,0.00015248,2]
[400873052,1767850239892,-500.0,0.00015248,2]
[400873054,1767850239902,-1517.64,0.000153,2]
[400873056,1767850239911,-1000.0,0.0001531,2]
[400873058,1767850239919,-1000.0,0.0001531,2]
[400873059,1767850239928,-1000.0,0.0001531,2]
[400873062,1767850239938,-1000.0,0.0001531,2]
[400873063,1767850239947,-1002.28599053,0.0001531,2]
[400873066,1767850239956,-1000.0,0.0001531,2]
[400873068,1767850239965,-1000.0,0.0001531,2]
[400873070,1767850239974,-1000.0,0.0001531,2]
[400873072,1767850239984,-261.39999377,0.00015423,2]
[400873074,1767850239993,-440.02,0.00015499,2]
[400873076,1767850240001,-587.0,0.00015561,2]
[400873078,1767850240011,-2351.0,0.00015654,2]
[400873080,1767850240019,-485.34897762,0.0001567,2]
[400873082,1767850240029,-10674.87334124,0.00015694,2]
[400873084,1767850240039,-9599.12191046,0.00015698,2]
[400873086,1767850240048,-524.76,0.00015753,2]
[400873088,1767850240057,-2045.62935019,0.00015807,2]
[400873090,1767850240067,-1500.0,0.00015858,2]
[400873092,1767850240076,-353.04550387,0.00015858,2]
[400873094,1767850240086,-1006.63638204,0.00015858,2]
[400873096,1767850240095,-1500.0,0.00015858,2]
[400873098,1767850240104,-1500.0,0.00015858,2]
[400873100,1767850240114,-1500.0,0.00015858,2]
[400873102,1767850240123,-1181.44262662,0.00015858,2]
[400873104,1767850240132,-1000.0,0.00015918,2]
[400873106,1767850240141,-409.1,0.00015975,2]
[400873108,1767850240150,-790.96089808,0.0001599,2]
[400873110,1767850240159,-132779.59344903,0.00016,2]
[400873112,1767850240168,-240279.95428941,0.00016,4]
[400873114,1767850240179,-9252.33,0.00016116,2]
[400873116,1767850240188,-150.0,0.000162,2]
[400873118,1767850240197,-42117.36944627,0.000162,5]
[400873120,1767850240206,-440.02,0.00016237,2]
[400873122,1767850240216,-10674.87334124,0.00016245,2]
[400873124,1767850240226,-261.39999377,0.00016248,2]
[400873126,1767850240236,-9599.12191046,0.00016248,2]
[400873128,1767850240245,-150.0,0.00016255,2]
[400873130,1767850240255,-151.66241854,0.00016267,2]
[400873132,1767850240264,-736.73634073,0.00016267,2]
[400873134,1767850240274,-322.6107,0.00016267,2]
[400873136,1767850240283,-1500.0,0.00016267,2]
[400873138,1767850240292,-1500.0,0.00016267,2]
[400873140,1767850240302,-1500.0,0.00016267,2]
[400873142,1767850240311,-1500.0,0.00016267,2]
[400873144,1767850240320,-500.0,0.00016267,2]
[400873146,1767850240331,-500.0,0.00016267,2]
[400873148,1767850240341,-1500.0,0.00016267,2]
[400873150,1767850240350,-500.0,0.00016267,2]
[400873152,1767850240359,-500.0,0.00016267,2]
[400873154,1767850240368,-1500.0,0.00016267,2]
[400873156,1767850240377,-500.0,0.00016267,2]
[400873157,1767850240387,-500.0,0.00016267,2]
[400873159,1767850240396,-1500.0,0.00016267,2]
[400873161,1767850240406,-500.0,0.00016267,2]
[400873163,1767850240416,-500.0,0.00016267,2]
[400873165,1767850240426,-1500.0,0.00016267,2]
[400873167,1767850240436,-500.0,0.00016267,2]
[400873169,1767850240448,-500.0,0.00016267,2]
[400873171,1767850240458,-500.0,0.00016267,2]
[400873174,1767850240467,-1500.0,0.00016267,2]
[400873176,1767850240477,-500.0,0.00016267,2]
[400873177,1767850240486,-500.0,0.00016267,2]
[400873179,1767850240495,-1500.0,0.00016267,2]
[400873181,1767850240504,-500.0,0.00016267,2]
[400873184,1767850240514,-500.0,0.00016267,2]
[400873186,1767850240525,-1500.0,0.00016267,2]
[400873188,1767850240534,-500.0,0.00016267,2]
[400873190,1767850240543,-500.0,0.00016267,2]
[400873192,1767850240553,-500.0,0.00016267,2]
[400873194,1767850240563,-500.0,0.00016267,2]
[400873195,1767850240572,-500.0,0.00016267,2]
[400873197,1767850240582,-500.0,0.00016267,2]
[400873199,1767850240591,-500.0,0.00016267,2]
[400873201,1767850240600,-250.0,0.00016267,2]
[400873203,1767850240610,-270.73180541,0.00016267,2]
[400873205,1767850240620,-500.0,0.00016267,2]
[400873207,1767850240629,-2000.0,0.00016267,2]
[400873210,1767850240639,-500.0,0.00016267,2]
[400873212,1767850240649,-2000.0,0.00016267,2]
[400873214,1767850240659,-419.1378307,0.00016267,2]
[400873216,1767850240668,-2000.0,0.00016267,2]
[400873218,1767850240677,-2000.0,0.00016267,2]
[400873220,1767850240686,-151.0,0.00016267,2]
[400873222,1767850240696,-2000.0,0.00016267,2]
[400873223,1767850240705,-2000.0,0.00016267,2]
[400873225,1767850240716,-151.0,0.00016267,2]
[400873228,1767850240726,-2000.0,0.00016267,2]
[400873230,1767850240735,-574.12855637,0.00016267,2]
[400873232,1767850240744,-2000.0,0.00016267,2]
[400873234,1767850240753,-578.20924308,0.00016267,2]
[400873236,1767850240762,-2000.0,0.00016267,2]
[400873237,1767850240771,-2000.0,0.00016267,2]
[400873239,1767850240781,-2000.0,0.00016267,2]
[400873241,1767850240790,-500.0,0.00016267,2]
[400873243,1767850240799,-620.0,0.00016267,2]
[400873245,1767850240809,-500.0,0.00016267,2]
[400873247,1767850240818,-500.0,0.00016267,2]
[400873249,1767850240826,-500.0,0.00016267,2]
[400873251,1767850240835,-500.0,0.00016267,2]
[400873253,1767850240844,-500.0,0.00016267,2]
[400873255,1767850240854,-500.0,0.00016267,2]
[400873257,1767850240863,-500.0,0.00016267,2]
[400873259,1767850240871,-500.0,0.00016267,2]
[400873261,1767850240881,-500.0,0.00016267,2]
[400873263,1767850240890,-500.0,0.00016267,2]
[400873265,1767850240900,-150.0,0.00016309,2]
[400873267,1767850240909,-500.0,0.00016322,2]
[400873269,1767850240918,-168.51620742,0.00016338,2]
[400873271,1767850240927,-200.0,0.0001634,2]
[400873273,1767850240936,-150.0,0.00016364,2]
[400873275,1767850240945,-156.0,0.00016384,2]
[400873277,1767850240954,-833.0,0.000164,2]
[400873279,1767850240963,-833.0,0.000164,2]
[400873281,1767850240972,-162.0,0.000164,2]
[400873283,1767850240981,-172.0,0.000164,2]
[400873285,1767850240990,-162.0,0.000164,2]
[400873287,1767850240999,-419.55932712,0.00016406,2]
[400873289,1767850241007,-2000.0,0.00016406,2]
[400873291,1767850241016,-1513.79086394,0.00016406,2]
[400873293,1767850241025,-2000.0,0.00016406,2]
[400873295,1767850241035,-2000.0,0.00016406,2]
[400873297,1767850241044,-150.0,0.00016418,2]
[400873299,1767850241053,-500.0,0.00016438,2]
[400873301,1767850241062,-500.0,0.00016438,2]
[400873303,1767850241071,-500.0,0.00016438,2]
[400873305,1767850241080,-500.0,0.00016438,2]
[400873307,1767850241090,-500.0,0.00016438,2]
[400873309,1767850241099,-500.0,0.00016438,2]
[400873311,1767850241108,-500.0,0.00016438,2]
[400873313,1767850241116,-500.0,0.00016438,2]
[400873315,1767850241125,-500.0,0.00016438,2]
[400873317,1767850241135,-500.0,0.00016438,2]
[400873319,1767850241144,-500.0,0.00016438,2]
[400873321,1767850241153,-500.0,0.00016438,2]
[400873323,1767850241162,-500.0,0.00016438,2]
[400873325,1767850241171,-500.0,0.00016438,2]
[400873327,1767850241180,-500.0,0.00016438,2]
[400873329,1767850241189,-521.4470336,0.00016438,2]
[400873331,1767850241198,-500.0,0.00016438,2]
[400873333,1767850241207,-500.0,0.00016438,2]
[400873335,1767850241216,-500.0,0.00016438,2]
[400873337,1767850241225,-500.0,0.00016438,2]
[400873339,1767850241234,-500.0,0.00016438,2]
[400873341,1767850241243,-500.0,0.00016438,2]
[400873343,1767850241252,-2120.96928991,0.00016438,2]
[400873345,1767850241261,-2120.96928991,0.00016438,2]
[400873347,1767850241270,-2120.96928991,0.00016438,2]
[400873349,1767850241280,-2120.96928991,0.00016438,2]
[400873351,1767850241289,-2120.96928991,0.00016438,2]
[400873353,1767850241299,-2120.96928991,0.00016438,2]
[400873355,1767850241308,-2120.96928991,0.00016438,2]
[400873357,1767850241317,-2120.96928991,0.00016438,2]
[400873359,1767850241326,-2120.96928991,0.00016438,2]
[400873361,1767850241335,-2120.96928991,0.00016438,2]
[400873363,1767850241344,-2120.96928991,0.00016438,2]
[400873365,1767850241354,-2120.96928991,0.00016438,2]
[400873367,1767850241363,-2120.96928991,0.00016438,2]
[400873369,1767850241372,-2120.96928991,0.00016438,2]
[400873371,1767850241383,-2120.96928991,0.00016438,2]
[400873373,1767850241393,-2120.96928991,0.00016438,2]
[400873401,1767850241652,-2120.96928991,0.00016438,2]
[400873403,1767850241664,-2120.96928991,0.00016438,2]
[400873405,1767850241674,-2120.96928991,0.00016438,2]
[400873407,1767850241683,-2120.96928991,0.00016438,2]
[400873409,1767850241694,-2120.96928991,0.00016438,2]
[400873411,1767850241703,-2120.96928991,0.00016438,2]
[400873413,1767850241713,-2120.96928991,0.00016438,2]
[400873415,1767850241722,-2120.96928991,0.00016438,2]
[400873417,1767850241731,-2120.96928991,0.00016438,2]
[400873419,1767850241740,-2120.96928991,0.00016438,2]
[400873421,1767850241750,-2120.96928991,0.00016438,2]
[400873423,1767850241759,-2120.96928991,0.00016438,2]
[400873425,1767850241768,-2120.96928991,0.00016438,2]
[400873427,1767850241778,-2120.96928991,0.00016438,2]
[400873429,1767850241787,-2120.96928991,0.00016438,2]
[400873431,1767850241797,-2120.96928991,0.00016438,2]
[400873433,1767850241807,-2120.96928991,0.00016438,2]
[400873435,1767850241817,-2120.96928991,0.00016438,2]
[400873438,1767850241826,-2120.96928991,0.00016438,2]
[400873440,1767850241836,-2120.96928991,0.00016438,2]
[400873441,1767850241845,-2120.96928991,0.00016438,2]
[400873444,1767850241855,-2120.96928991,0.00016438,2]
[400873445,1767850241866,-2120.96928991,0.00016438,2]
[400873447,1767850241875,-2120.96928991,0.00016438,2]
[400873450,1767850241885,-2120.96928991,0.00016438,2]
[400873452,1767850241894,-2120.96928991,0.00016438,2]
[400873454,1767850241904,-2120.96928991,0.00016438,2]
[400873455,1767850241915,-2120.96928991,0.00016438,2]
[400873458,1767850241924,-2120.96928991,0.00016438,2]
[400873460,1767850241934,-2120.96928991,0.00016438,2]
[400873462,1767850241943,-2120.96928991,0.00016438,2]
[400873464,1767850241953,-2120.96928991,0.00016438,2]
[400873465,1767850241962,-2120.96928991,0.00016438,2]
[400873468,1767850241972,-2120.96928991,0.00016438,2]
[400873470,1767850241981,-2120.96928991,0.00016438,2]
[400873472,1767850241991,-2120.96928991,0.00016438,2]
[400873474,1767850242001,-2120.96928991,0.00016438,2]
[400873476,1767850242011,-2120.96928991,0.00016438,2]
[400873478,1767850242020,-2120.96928991,0.00016438,2]
[400873480,1767850242029,-2120.96928991,0.00016438,2]
[400873482,1767850242038,-2120.96928991,0.00016438,2]
[400873484,1767850242048,-2120.96928991,0.00016438,2]
[400873486,1767850242057,-2114.90937765,0.00016438,2]
[400873488,1767850242066,-2114.90937765,0.00016438,2]
[400873490,1767850242075,-2114.90937765,0.00016438,2]
[400873492,1767850242084,-2114.90937765,0.00016438,2]
[400873494,1767850242093,-2114.90937765,0.00016438,2]
[400873496,1767850242104,-2114.90937765,0.00016438,2]
[400873498,1767850242113,-2114.90937765,0.00016438,2]
[400873500,1767850242122,-2114.90937765,0.00016438,2]
[400873502,1767850242131,-2114.90937765,0.00016438,2]
[400873504,1767850242141,-2114.90937765,0.00016438,2]
[400873505,1767850242151,-20094.92,0.00016438,2]
[400873508,1767850242161,-524.76,0.00016438,2]
[400873510,1767850242170,-800.0,0.00016438,2]
[400873511,1767850242179,-661.47,0.00016441,2]
[400873513,1767850242188,-157.72323008,0.00016463,2]
[400873515,1767850242198,-150.0,0.00016473,2]
[400873517,1767850242207,-1000.0,0.00016515,2]
[400873519,1767850242217,-736.0,0.00016521,2]
[400873521,1767850242226,-150.0,0.00016527,2]
[400873524,1767850242236,-1000.0,0.0001654,2]
[400873525,1767850242245,-150.0,0.00016582,2]
[400873527,1767850242254,-150.0,0.00016636,2]
[400873529,1767850242264,-150.0,0.00016691,2]
[400873531,1767850242273,-162.0,0.0001672,2]
[400873533,1767850242283,-833.0,0.0001672,2]
[400873535,1767850242293,-833.0,0.0001672,2]
[400873537,1767850242303,-162.0,0.0001672,2]
[400873539,1767850242313,-833.0,0.0001672,2]
[400873541,1767850242324,-168.51620742,0.00016729,2]
[400873543,1767850242333,-150.0,0.00016745,2]
[400873545,1767850242343,-10674.87334124,0.00016797,2]
[400873548,1767850242354,-9599.12191046,0.00016799,2]
[400873549,1767850242364,-150.0,0.000168,2]
[400873551,1767850242373,-152.48765181,0.00016815,2]
[400873553,1767850242382,-157.22325972,0.00016815,2]
[400873556,1767850242392,-595.37131296,0.00016815,2]
[400873559,1767850242402,-304.30680198,0.00016826,2]
[400873562,1767850242411,-150.0,0.00016855,2]
[400873564,1767850242420,-180.0,0.00016864,2]
[400873566,1767850242430,-637.69822594,0.000169,2]
[400873568,1767850242440,-150.0,0.00016909,2]
[400873571,1767850242453,-2990.13876078,0.00016922,2]
[400873576,1767850242471,-7009.86123922,0.00016922,2]
[400873578,1767850242480,-2500.0,0.00016954,2]
[400873580,1767850242490,-2500.0,0.00016954,2]
[400873582,1767850242502,-2500.0,0.00016954,2]
[400873584,1767850242511,-150.0,0.00016964,2]
[400873586,1767850242522,-440.02,0.00016975,2]
[400873588,1767850242531,-524211.83,0.00016986,2]
[400873590,1767850242541,-250.0,0.00017,2]
[400873592,1767850242552,-233.57,0.00017,3]
[400873594,1767850242562,-3036.0,0.00017,2]
[400873596,1767850242571,-157.72323008,0.00017012,2]
[400873598,1767850242581,-150.0,0.00017018,2]
[400873600,1767850242590,-833.0,0.0001704,2]
[400873602,1767850242599,-300.0,0.00017052,2]
[400873604,1767850242609,-823.0,0.00017067,2]
[400873606,1767850242618,-150.0,0.00017073,2]
[400873608,1767850242628,-261.39999377,0.00017074,2]
[400873610,1767850242639,-20452.74518303,0.000171,2]
[400873612,1767850242649,-300.0,0.00017102,2]
[400873614,1767850242659,-1000.0,0.00017112,2]
[400873616,1767850242669,-168.51620742,0.00017119,2]
[400873618,1767850242679,-150.0,0.00017127,2]
[400873620,1767850242688,-300.0,0.00017138,2]
[400873622,1767850242697,-300.0,0.00017169,2]
[400873624,1767850242707,-178.56,0.00017178,2]
[400873626,1767850242716,-150.0,0.00017182,2]
[400873628,1767850242726,-2276.96201759,0.00017201,2]
[400873630,1767850242735,-5242.82669963,0.00017202,2]
[400873632,1767850242744,-3292.0,0.0001722,2]
[400873634,1767850242753,-250.0,0.00017226,2]
[400873636,1767850242762,-300.0,0.00017227,2]
[400873638,1767850242772,-150.0,0.00017236,2]
[400873640,1767850242781,-833.4,0.0001726,2]
[400873642,1767850242790,-150.0,0.00017291,2]
[400873643,1767850242800,-833.4,0.00017327,2]
[400873645,1767850242809,-150.0,0.00017345,2]
[400873647,1767850242818,-9599.12191046,0.00017349,2]
[400873648,1767850242828,-162.0,0.0001736,2]
[400873650,1767850242840,-162.0,0.0001736,2]
[400873652,1767850242850,-165.0,0.0001736,2]
[400873654,1767850242859,-617.40005154,0.00017363,2]
[400873656,1767850242869,-300.0,0.00017379,2]
[400873658,1767850242879,-266.05,0.00017389,2]
[400873660,1767850242888,-833.4,0.00017395,2]
[400873662,1767850242899,-3562.0,0.00017397,2]
[400873664,1767850242908,-150.0,0.000174,2]
[400873666,1767850242918,-637.69822592,0.000174,2]
[400873668,1767850242927,-1000.0,0.000174,2]
[400873670,1767850242936,-162.0,0.0001742,2]
[400873672,1767850242946,-162.0,0.0001742,2]
[400873674,1767850242955,-167.43,0.0001743,2]
[400873676,1767850242964,-150.0,0.00017455,2]
[400873677,1767850242973,-833.4,0.00017462,2]
[400873679,1767850242983,-300.0,0.00017474,2]
[400873681,1767850242992,-469.50438451,0.00017478,2]
[400873683,1767850243001,-1330.0,0.00017494,2]
[400873685,1767850243010,-2436.0,0.00017494,2]
[400873687,1767850243019,-621.371,0.00017494,2]
[400873689,1767850243028,-1600.92502348,0.000175,2]
[400873691,1767850243038,-500.0,0.00017501,2]
[400873693,1767850243047,-1508.63308647,0.00017502,2]
[400873695,1767850243056,-3000.0,0.00017502,2]
[400873697,1767850243065,-2464.35925581,0.00017502,2]
[400873699,1767850243074,-3562.0,0.00017504,2]
[400873701,1767850243083,-500.0,0.00017508,2]
[400873703,1767850243091,-500.0,0.00017508,2]
[400873704,1767850243101,-150.0,0.00017509,2]
[400873706,1767850243110,-168.51620742,0.0001751,2]
[400873708,1767850243119,-500.0,0.00017518,2]
[400873710,1767850243128,-186.78,0.00017518,2]
[400873712,1767850243138,-833.4,0.00017529,2]
[400873714,1767850243148,-241.73307518,0.00017534,2]
[400873716,1767850243157,-300.0,0.00017535,2]
[400873718,1767850243167,-157.72323008,0.0001756,2]
[400873720,1767850243176,-150.0,0.00017564,2]
[400873722,1767850243185,-300.0,0.00017566,2]
[400873724,1767850243194,-223.22739,0.00017567,2]
[400873726,1767850243203,-3562.0,0.00017568,2]
[400873728,1767850243212,-409.1,0.00017573,2]
[400873730,1767850243222,-300.0,0.00017577,2]
[400873732,1767850243231,-300.0,0.00017591,2]
[400873734,1767850243240,-833.4,0.00017596,2]
[400873737,1767850243249,-1000.0,0.000176,2]
[400873739,1767850243258,-300.0,0.00017615,2]
[400873740,1767850243267,-150.0,0.00017618,2]
[400873742,1767850243276,-334.5472959,0.00017636,2]
[400873744,1767850243285,-642.94,0.00017636,2]
[400873746,1767850243295,-5309.74765664,0.0001764,2]
[400873748,1767850243304,-833.4,0.00017664,2]
[400873750,1767850243313,-150.0,0.00017673,2]
[400873752,1767850243322,-3562.0,0.00017673,2]
[400873754,1767850243331,-162.0,0.0001768,2]
[400873756,1767850243341,-833.0,0.0001768,2]
[400873758,1767850243350,-162.0,0.0001768,2]
[400873760,1767850243359,-162.0,0.0001768,2]
[400873762,1767850243369,-833.0,0.0001768,2]
[400873763,1767850243378,-833.0,0.0001768,2]
[400873765,1767850243388,-162.0,0.0001768,2]
[400873767,1767850243398,-833.0,0.0001768,2]
[400873769,1767850243407,-300.0,0.00017691,2]
[400873771,1767850243416,-25000.0,0.00017698,3]
[400873773,1767850243425,-4555.0777368,0.000177,2]
[400873775,1767850243434,-25000.0,0.00017706,3]
[400873777,1767850243444,-1000.0,0.00017709,2]
[400873779,1767850243455,-194.549792,0.00017712,2]
[400873781,1767850243465,-440.02,0.00017713,2]
[400873783,1767850243474,-150.0,0.00017714,2]
[400873785,1767850243483,-25000.0,0.00017715,3]
[400873787,1767850243491,-300.0,0.00017717,2]
[400873789,1767850243501,-23074.732796,0.00017724,3]
[400873791,1767850243510,-150.0,0.00017727,2]
[400873792,1767850243519,-833.4,0.00017731,2]
[400873794,1767850243527,-25000.0,0.00017733,3]
[400873796,1767850243537,-25000.0,0.00017742,3]
[400873798,1767850243545,-25000.0,0.0001775,3]
[400873800,1767850243554,-25000.0,0.00017759,3]
[400873802,1767850243563,-25000.0,0.00017768,3]
[400873804,1767850243572,-152.341,0.00017775,2]
[400873806,1767850243581,-1757.284,0.00017775,2]
[400873808,1767850243590,-25000.0,0.00017777,3]
[400873810,1767850243599,-150.0,0.00017782,2]
[400873811,1767850243609,-25000.0,0.00017786,3]
[400873813,1767850243618,-266.05,0.00017791,2]
[400873815,1767850243628,-25000.0,0.00017794,3]
[400873817,1767850243637,-833.4,0.00017798,2]
[400873819,1767850243647,-1000.0,0.000178,2]
[400873821,1767850243656,-25000.0,0.00017803,3]
[400873823,1767850243665,-3562.0,0.00017806,2]
[400873825,1767850243674,-25000.0,0.00017812,3]
[400873827,1767850243684,-3871.87879,0.0001782,2]
[400873829,1767850243693,-3871.87879,0.0001782,2]
[400873831,1767850243703,-25000.0,0.00017821,3]
[400873832,1767850243712,-25000.0,0.0001783,3]
[400873834,1767850243721,-3562.0,0.0001783,2]
[400873836,1767850243730,-3871.87879,0.0001783,2]
[400873838,1767850243740,-150.0,0.00017836,2]
[400873840,1767850243750,-25000.0,0.00017838,3]
[400873842,1767850243760,-240.0,0.0001784,2]
[400873844,1767850243769,-500.0,0.00017846,2]
[400873846,1767850243780,-25000.0,0.00017847,3]
[400873848,1767850243789,-168.0,0.0001785,2]
[400873850,1767850243799,-167.43,0.00017854,2]
[400873852,1767850243809,-200.0,0.00017855,2]
[400873854,1767850243818,-200.0,0.00017856,2]
[400873856,1767850243828,-25000.0,0.00017856,3]
[400873858,1767850243839,-200.0,0.00017856,2]
[400873859,1767850243849,-200.0,0.00017856,2]
[400873861,1767850243859,-3871.87879,0.0001786,2]
[400873863,1767850243869,-25000.0,0.00017865,3]
[400873865,1767850243878,-833.4,0.00017865,2]